[Event "Early-Titled-Tuesday-Blitz-January-23-2024"]
[Site "Chess.com"]
[Date "2024.01.23"]
[Round "5"]
[White "FoxOnTheRun97"]
[Black "verrbaa"]
[Result "0-1"]
[WhiteElo "2607"]
[BlackElo "2503"]
[TimeControl "180+1"]
[EndTime "8:55:32 PST"]
[Termination "verrbaa won by resignation"]

1. d4 {[%clk 0:03:00.9]} 1... Nf6 {[%clk 0:02:57.2]} 2. Bg5 {[%clk 0:03:01.2]}
2... d5 {[%clk 0:02:51.1]} 3. Nd2 {[%clk 0:03:00.7]} 3... e6 {[%clk 0:02:38.9]}
4. e3 {[%clk 0:03:00.5]} 4... Be7 {[%clk 0:02:35.3]} 5. Bd3 {[%clk 0:03:00.6]}
5... O-O {[%clk 0:02:25.9]} 6. f4 {[%clk 0:02:58.6]} 6... c5 {[%clk 0:02:21.2]}
7. c3 {[%clk 0:02:58.2]} 7... Nc6 {[%clk 0:02:21.1]} 8. Ngf3 {[%clk 0:02:55.4]}
8... b6 {[%clk 0:02:12.5]} 9. O-O {[%clk 0:02:49.8]} 9... Bb7 {[%clk 0:02:12.6]}
10. Ne5 {[%clk 0:02:48.8]} 10... Nxe5 {[%clk 0:01:31.5]} 11. fxe5 {[%clk
0:02:47.1]} 11... Ne4 {[%clk 0:01:31.8]} 12. Bxe7 {[%clk 0:02:43.2]} 12... Qxe7
{[%clk 0:01:32.7]} 13. Nxe4 {[%clk 0:02:42.8]} 13... dxe4 {[%clk 0:01:32.9]} 14.
Bc4 {[%clk 0:02:40]} 14... Rac8 {[%clk 0:01:28.4]} 15. Rc1 {[%clk 0:02:39.1]}
15... Qg5 {[%clk 0:01:22.6]} 16. Qe2 {[%clk 0:02:37]} 16... h6 {[%clk
0:01:05.2]} 17. Rfe1 {[%clk 0:02:12.9]} 17... Rfd8 {[%clk 0:01:04.2]} 18. Bb3
{[%clk 0:01:59.9]} 18... Rc7 {[%clk 0:00:44.1]} 19. Rcd1 {[%clk 0:01:54.4]}
19... cxd4 {[%clk 0:00:38.7]} 20. exd4 {[%clk 0:01:53.5]} 20... e3 {[%clk
0:00:21.8]} 21. g3 {[%clk 0:01:16.7]} 21... Qf5 {[%clk 0:00:21.7]} 22. Qxe3
{[%clk 0:01:06.6]} 22... b5 {[%clk 0:00:21.8]} 23. Rd2 {[%clk 0:00:59.6]} 23...
b4 {[%clk 0:00:21.2]} 24. Bc2 {[%clk 0:00:59.6]} 24... Qh3 {[%clk 0:00:20.4]}
25. Rf2 {[%clk 0:00:55]} 25... bxc3 {[%clk 0:00:19.4]} 26. bxc3 {[%clk
0:00:53.8]} 26... Rdc8 {[%clk 0:00:20.1]} 27. Be4 {[%clk 0:00:46.3]} 27... Rxc3
{[%clk 0:00:18.9]} 28. Qf4 {[%clk 0:00:45.1]} 28... Bxe4 {[%clk 0:00:18.9]} 29.
Qxe4 {[%clk 0:00:36]} 29... Rc1 {[%clk 0:00:17]} 30. Re2 {[%clk 0:00:28.6]}
30... Rxe1+ {[%clk 0:00:16.5]} 31. Rxe1 {[%clk 0:00:29.2]} 31... g6 {[%clk
0:00:16.2]} 32. Qf3 {[%clk 0:00:24.6]} 32... Rc2 {[%clk 0:00:13.8]} 33. Re2
{[%clk 0:00:16.2]} 33... Rc1+ {[%clk 0:00:13.8]} 34. Kf2 {[%clk 0:00:16.3]}
34... Rf1+ {[%clk 0:00:14.1]} 35. Ke3 {[%clk 0:00:17]} 35... Rxf3+ {[%clk
0:00:14.8]} 36. Kxf3 {[%clk 0:00:17.9]} 36... Qf5+ {[%clk 0:00:14.4]} 37. Kg2
{[%clk 0:00:17.9]} 37... Qd3 {[%clk 0:00:14.1]} 38. Rf2 {[%clk 0:00:15.6]} 38...
Qxd4 {[%clk 0:00:14.6]} 39. h4 {[%clk 0:00:16]} 39... Qxe5 {[%clk 0:00:14.8]}
40. Rf4 {[%clk 0:00:16.6]} 40... h5 {[%clk 0:00:14.9]} 41. a4 {[%clk 0:00:16.1]}
41... a5 {[%clk 0:00:14.2]} 42. Kf3 {[%clk 0:00:16]} 42... Kg7 {[%clk
0:00:14.7]} 43. Kf2 {[%clk 0:00:16.3]} 43... Qb2+ {[%clk 0:00:14.4]} 44. Kf3
{[%clk 0:00:16.7]} 44... e5 {[%clk 0:00:14.7]} 45. Re4 {[%clk 0:00:15]} 45...
Qc3+ {[%clk 0:00:14.6]} 46. Re3 {[%clk 0:00:15.3]} 46... Qd4 {[%clk 0:00:12.7]}
47. Re4 {[%clk 0:00:15.9]} 47... Qd5 {[%clk 0:00:11.9]} 48. Ke3 {[%clk
0:00:09.3]} 48... f5 {[%clk 0:00:12.1]} 49. Rxe5 {[%clk 0:00:09.8]} 49... Qxe5+
{[%clk 0:00:12.2]} 0-1

[Event "Early-Titled-Tuesday-Blitz-January-23-2024"]
[Site "Chess.com"]
[Date "2024.01.23"]
[Round "5"]
[White "Ural_bogatyr"]
[Black "samirliberec"]
[Result "0-1"]
[WhiteElo "2525"]
[BlackElo "2366"]
[TimeControl "180+1"]
[EndTime "8:55:33 PST"]
[Termination "samirliberec won on time"]

1. d4 {[%clk 0:02:50]} 1... Nf6 {[%clk 0:02:57.8]} 2. Nc3 {[%clk 0:02:50.6]}
2... c5 {[%clk 0:02:56.9]} 3. dxc5 {[%clk 0:02:47.1]} 3... e6 {[%clk 0:02:56.7]}
4. e4 {[%clk 0:02:47.2]} 4... Bxc5 {[%clk 0:02:48.5]} 5. e5 {[%clk 0:02:47.1]}
5... Qb6 {[%clk 0:02:36]} 6. Nh3 {[%clk 0:02:09.9]} 6... Nd5 {[%clk 0:02:25.2]}
7. Nxd5 {[%clk 0:02:07.3]} 7... exd5 {[%clk 0:02:25.1]} 8. Qxd5 {[%clk
0:02:07.9]} 8... O-O {[%clk 0:02:22.4]} 9. Qb3 {[%clk 0:02:00.7]} 9... Qc6
{[%clk 0:02:05]} 10. Qf3 {[%clk 0:01:39.7]} 10... d5 {[%clk 0:01:51.8]} 11. Bf4
{[%clk 0:01:29.4]} 11... Bf5 {[%clk 0:01:33.4]} 12. Bd3 {[%clk 0:01:24.1]} 12...
Bb4+ {[%clk 0:01:24.6]} 13. c3 {[%clk 0:01:13.2]} 13... Be4 {[%clk 0:01:15]} 14.
Bxe4 {[%clk 0:00:49.3]} 14... dxe4 {[%clk 0:01:14.3]} 15. Qg3 {[%clk 0:00:48.2]}
15... Be7 {[%clk 0:00:50.4]} 16. O-O {[%clk 0:00:47.3]} 16... Nd7 {[%clk
0:00:48.8]} 17. Rad1 {[%clk 0:00:45.9]} 17... Rad8 {[%clk 0:00:47.3]} 18. Ng5
{[%clk 0:00:44.2]} 18... Nc5 {[%clk 0:00:36.7]} 19. Be3 {[%clk 0:00:25.1]} 19...
Bxg5 {[%clk 0:00:29.2]} 20. Bxg5 {[%clk 0:00:23.3]} 20... Rd3 {[%clk 0:00:27.2]}
21. Be3 {[%clk 0:00:21.1]} 21... Rfd8 {[%clk 0:00:24.2]} 22. Bd4 {[%clk
0:00:20.8]} 22... Rxd1 {[%clk 0:00:21.9]} 23. Rxd1 {[%clk 0:00:20.2]} 23... Ne6
{[%clk 0:00:21.7]} 24. h4 {[%clk 0:00:19.4]} 24... Qc4 {[%clk 0:00:19.8]} 25. h5
{[%clk 0:00:19.4]} 25... Qe2 {[%clk 0:00:18.9]} 26. Rf1 {[%clk 0:00:15.4]} 26...
Qxh5 {[%clk 0:00:17.3]} 27. Qe3 {[%clk 0:00:15.2]} 27... Qg4 {[%clk 0:00:14.5]}
28. Re1 {[%clk 0:00:14.5]} 28... Nf4 {[%clk 0:00:13.4]} 29. Qxe4 {[%clk
0:00:14.6]} 29... Re8 {[%clk 0:00:09.1]} 30. g3 {[%clk 0:00:12.9]} 30... Nh3+
{[%clk 0:00:05.1]} 31. Kg2 {[%clk 0:00:11.9]} 31... Qh5 {[%clk 0:00:05.3]} 32.
Rh1 {[%clk 0:00:09.9]} 32... Nxf2 {[%clk 0:00:03.2]} 33. Rxh5 {[%clk 0:00:07]}
33... Nxe4 {[%clk 0:00:02.4]} 34. Rh1 {[%clk 0:00:05.5]} 34... b6 {[%clk
0:00:02.5]} 35. a4 {[%clk 0:00:04.7]} 35... Ng5 {[%clk 0:00:02.7]} 36. a5 {[%clk
0:00:04.6]} 36... Ne6 {[%clk 0:00:03.4]} 37. axb6 {[%clk 0:00:04.5]} 37... axb6
{[%clk 0:00:04.1]} 38. Bxb6 {[%clk 0:00:03.9]} 38... Rb8 {[%clk 0:00:04.8]} 0-1

[Event "Early-Titled-Tuesday-Blitz-January-23-2024"]
[Site "Chess.com"]
[Date "2024.01.23"]
[Round "5"]
[White "Grossboss19"]
[Black "BardArtem"]
[Result "0-1"]
[WhiteElo "2570"]
[BlackElo "2822"]
[TimeControl "180+1"]
[EndTime "8:55:36 PST"]
[Termination "BardArtem won on time"]

1. Nf3 {[%clk 0:02:59.3]} 1... d5 {[%clk 0:02:59.7]} 2. g3 {[%clk 0:02:59.3]}
2... Nf6 {[%clk 0:02:59.2]} 3. Bg2 {[%clk 0:02:59.4]} 3... Nc6 {[%clk
0:02:55.5]} 4. d4 {[%clk 0:02:59.2]} 4... Bf5 {[%clk 0:02:55.8]} 5. O-O {[%clk
0:02:58.5]} 5... e6 {[%clk 0:02:55.8]} 6. c4 {[%clk 0:02:58.2]} 6... Be7 {[%clk
0:02:51.1]} 7. Ne5 {[%clk 0:02:53.8]} 7... Nxe5 {[%clk 0:02:49.5]} 8. dxe5
{[%clk 0:02:54.7]} 8... Ne4 {[%clk 0:02:50.4]} 9. Nd2 {[%clk 0:02:52.6]} 9...
Nxd2 {[%clk 0:02:49.5]} 10. Bxd2 {[%clk 0:02:53.5]} 10... O-O {[%clk 0:02:46]}
11. cxd5 {[%clk 0:02:38.8]} 11... exd5 {[%clk 0:02:46.9]} 12. Qb3 {[%clk
0:02:38.8]} 12... Rb8 {[%clk 0:02:28.9]} 13. Rfd1 {[%clk 0:02:24.3]} 13... c6
{[%clk 0:02:17]} 14. e4 {[%clk 0:01:55.5]} 14... Bxe4 {[%clk 0:02:13.6]} 15.
Bxe4 {[%clk 0:01:54.3]} 15... dxe4 {[%clk 0:02:14.5]} 16. Bb4 {[%clk 0:01:50.7]}
16... Qe8 {[%clk 0:02:13.6]} 17. Bd6 {[%clk 0:01:48.3]} 17... Bxd6 {[%clk
0:02:10.3]} 18. exd6 {[%clk 0:01:48.6]} 18... Qe5 {[%clk 0:02:05.9]} 19. Rd2
{[%clk 0:01:44.6]} 19... b5 {[%clk 0:02:01.2]} 20. Rad1 {[%clk 0:01:40.6]} 20...
Rfd8 {[%clk 0:02:00.9]} 21. Qe3 {[%clk 0:01:37.6]} 21... Rd7 {[%clk 0:01:56.8]}
22. Rd4 {[%clk 0:01:25.5]} 22... f5 {[%clk 0:01:56.3]} 23. f3 {[%clk 0:01:22]}
23... Re8 {[%clk 0:01:46.7]} 24. fxe4 {[%clk 0:01:07.2]} 24... fxe4 {[%clk
0:01:47.6]} 25. b4 {[%clk 0:01:06.8]} 25... Re6 {[%clk 0:01:46.4]} 26. Qd2
{[%clk 0:00:16.6]} 26... e3 {[%clk 0:01:44]} 27. Qd3 {[%clk 0:00:17]} 27... e2
{[%clk 0:01:38.6]} 28. Re1 {[%clk 0:00:17.3]} 28... Rdxd6 {[%clk 0:01:34.3]} 29.
Rxd6 {[%clk 0:00:17.5]} 29... Rxd6 {[%clk 0:01:33.1]} 30. Qxe2 {[%clk
0:00:17.8]} 30... Qxe2 {[%clk 0:01:22.3]} 31. Rxe2 {[%clk 0:00:17.9]} 31... Rd4
{[%clk 0:01:23]} 32. a3 {[%clk 0:00:16.1]} 32... Rd3 {[%clk 0:01:20.5]} 33. Re6
{[%clk 0:00:13.5]} 33... Rc3 {[%clk 0:01:19.3]} 34. Rd6 {[%clk 0:00:12]} 34...
Kf8 {[%clk 0:01:16.9]} 35. Rd7 {[%clk 0:00:10.2]} 35... Rxa3 {[%clk 0:01:16.5]}
36. Rc7 {[%clk 0:00:10.3]} 36... Ra4 {[%clk 0:01:11.8]} 37. Rxc6 {[%clk
0:00:09.7]} 37... Rxb4 {[%clk 0:01:11.8]} 38. Rc8+ {[%clk 0:00:10.2]} 38... Kf7
{[%clk 0:01:10.2]} 39. Rc7+ {[%clk 0:00:11.1]} 39... Kf6 {[%clk 0:01:11]} 40.
Rxa7 {[%clk 0:00:11.8]} 40... Ra4 {[%clk 0:01:11.3]} 41. Rb7 {[%clk 0:00:11.8]}
41... Rb4 {[%clk 0:01:06.8]} 42. Kg2 {[%clk 0:00:11.5]} 42... Rb2+ {[%clk
0:01:06.1]} 43. Kf3 {[%clk 0:00:11.8]} 43... b4 {[%clk 0:01:05]} 44. h4 {[%clk
0:00:10.2]} 44... b3 {[%clk 0:01:05.4]} 45. h5 {[%clk 0:00:04.6]} 45... Rb1
{[%clk 0:01:03.6]} 46. Kg2 {[%clk 0:00:02.7]} 46... h6 {[%clk 0:00:46]} 47. Kh2
{[%clk 0:00:02.5]} 47... Ke5 {[%clk 0:00:20.6]} 48. Rxg7 {[%clk 0:00:01.6]}
48... b2 {[%clk 0:00:21.2]} 0-1

[Event "Early-Titled-Tuesday-Blitz-January-23-2024"]
[Site "Chess.com"]
[Date "2024.01.23"]
[Round "5"]
[White "tarno17"]
[Black "TheoSlade"]
[Result "0-1"]
[WhiteElo "2088"]
[BlackElo "2457"]
[TimeControl "180+1"]
[EndTime "8:55:36 PST"]
[Termination "TheoSlade won by resignation"]

1. e4 {[%clk 0:03:00.9]} 1... e5 {[%clk 0:03:00.3]} 2. Nf3 {[%clk 0:03:00.4]}
2... Nc6 {[%clk 0:03:00.9]} 3. Bb5 {[%clk 0:03:00.1]} 3... g6 {[%clk 0:03:01.1]}
4. O-O {[%clk 0:02:56.2]} 4... Bg7 {[%clk 0:03:00.5]} 5. c3 {[%clk 0:02:46.5]}
5... a6 {[%clk 0:03:00.8]} 6. Ba4 {[%clk 0:02:46.2]} 6... b5 {[%clk 0:03:01.1]}
7. Bb3 {[%clk 0:02:36.2]} 7... Nge7 {[%clk 0:03:01.1]} 8. d4 {[%clk 0:02:23.4]}
8... exd4 {[%clk 0:03:02]} 9. cxd4 {[%clk 0:02:22]} 9... d6 {[%clk 0:03:02.7]}
10. h3 {[%clk 0:02:15.1]} 10... O-O {[%clk 0:03:00.4]} 11. Nc3 {[%clk
0:02:00.6]} 11... Na5 {[%clk 0:03:00.5]} 12. Bc2 {[%clk 0:01:58.8]} 12... c5
{[%clk 0:03:01]} 13. Ne2 {[%clk 0:01:51.1]} 13... Bb7 {[%clk 0:02:46.8]} 14. Be3
{[%clk 0:01:28.8]} 14... Nc4 {[%clk 0:02:43.8]} 15. b3 {[%clk 0:01:24.7]} 15...
Nxe3 {[%clk 0:02:42.9]} 16. fxe3 {[%clk 0:01:25.6]} 16... Nc6 {[%clk 0:02:33.6]}
17. a3 {[%clk 0:00:43.9]} 17... Re8 {[%clk 0:02:30.7]} 18. g4 {[%clk 0:00:34.8]}
18... Bh6 {[%clk 0:02:26.1]} 19. Qd3 {[%clk 0:00:27.4]} 19... Rc8 {[%clk
0:02:20.7]} 20. d5 {[%clk 0:00:23.4]} 20... Ne5 {[%clk 0:02:15.8]} 21. Nxe5
{[%clk 0:00:23.6]} 21... Rxe5 {[%clk 0:02:16.7]} 22. Rf3 {[%clk 0:00:22.3]}
22... Qe7 {[%clk 0:01:59.8]} 23. Raf1 {[%clk 0:00:22]} 23... Rf8 {[%clk
0:01:50.8]} 24. Nf4 {[%clk 0:00:20.5]} 24... Bc8 {[%clk 0:01:49]} 25. Ng2 {[%clk
0:00:15.8]} 25... Bg7 {[%clk 0:01:42.7]} 26. a4 {[%clk 0:00:10.7]} 26... bxa4
{[%clk 0:01:40.9]} 27. bxa4 {[%clk 0:00:11.6]} 27... h5 {[%clk 0:01:41.3]} 28.
gxh5 {[%clk 0:00:10.5]} 28... Rxh5 {[%clk 0:01:42.2]} 29. Nf4 {[%clk 0:00:09]}
29... Rg5+ {[%clk 0:01:40]} 30. Kf2 {[%clk 0:00:09.8]} 30... Re5 {[%clk
0:01:37.2]} 31. Rg1 {[%clk 0:00:08.7]} 31... Qh4+ {[%clk 0:01:36.8]} 32. Ke2
{[%clk 0:00:08.4]} 32... Bd7 {[%clk 0:01:31.6]} 33. Qxa6 {[%clk 0:00:08.4]}
33... Qe7 {[%clk 0:01:21.6]} 34. Qd3 {[%clk 0:00:05.2]} 34... Rb8 {[%clk
0:01:19.6]} 35. Kd2 {[%clk 0:00:03.5]} 35... Rb2 {[%clk 0:01:17.3]} 36. Rfg3
{[%clk 0:00:03.5]} 36... Rxe4 {[%clk 0:01:15.2]} 37. Nxg6 {[%clk 0:00:03.5]}
37... fxg6 {[%clk 0:01:10.8]} 38. Rxg6 {[%clk 0:00:04.4]} 38... Re5 {[%clk
0:00:32.5]} 39. Rxg7+ {[%clk 0:00:03.9]} 39... Qxg7 {[%clk 0:00:33.4]} 40. Rxg7+
{[%clk 0:00:04.2]} 40... Kxg7 {[%clk 0:00:34.3]} 41. Qc3 {[%clk 0:00:04.2]}
41... Ra2 {[%clk 0:00:31.7]} 42. Qd3 {[%clk 0:00:03.6]} 42... Bf5 {[%clk
0:00:29.7]} 43. Qf1 {[%clk 0:00:02.6]} 43... Rxc2+ {[%clk 0:00:29.5]} 44. Kd1
{[%clk 0:00:02.9]} 44... Ra2 {[%clk 0:00:26.1]} 45. Qg1+ {[%clk 0:00:03.3]}
45... Kf7 {[%clk 0:00:26.7]} 46. Qg3 {[%clk 0:00:02.7]} 46... Rxd5+ {[%clk
0:00:26.1]} 47. Ke1 {[%clk 0:00:02.7]} 47... Ra1+ {[%clk 0:00:25.9]} 48. Kf2
{[%clk 0:00:03]} 48... Rd2+ {[%clk 0:00:26.3]} 49. Kf3 {[%clk 0:00:03.4]} 49...
Rf1+ {[%clk 0:00:27]} 50. Qf2 {[%clk 0:00:02.4]} 50... Rfxf2+ {[%clk 0:00:27.5]}
51. Kg3 {[%clk 0:00:02.3]} 51... c4 {[%clk 0:00:26.6]} 52. Kh4 {[%clk
0:00:03.2]} 52... Rg2 {[%clk 0:00:26.3]} 53. a5 {[%clk 0:00:04.1]} 53... Bc8
{[%clk 0:00:24.3]} 54. a6 {[%clk 0:00:05]} 54... Bxa6 {[%clk 0:00:23.6]} 55. Kh5
{[%clk 0:00:05]} 55... Rb2 {[%clk 0:00:22.8]} 0-1

[Event "Early-Titled-Tuesday-Blitz-January-23-2024"]
[Site "Chess.com"]
[Date "2024.01.23"]
[Round "5"]
[White "viniciusrego"]
[Black "ViratKohl_i"]
[Result "0-1"]
[WhiteElo "2461"]
[BlackElo "2603"]
[TimeControl "180+1"]
[EndTime "8:55:37 PST"]
[Termination "ViratKohl_i won by checkmate"]

1. d4 {[%clk 0:03:00.9]} 1... g6 {[%clk 0:02:58.7]} 2. c4 {[%clk 0:03:00.8]}
2... Bg7 {[%clk 0:02:58.4]} 3. e4 {[%clk 0:03:01]} 3... c6 {[%clk 0:02:52.4]} 4.
Nc3 {[%clk 0:03:00.7]} 4... d6 {[%clk 0:02:52]} 5. Be3 {[%clk 0:02:57.7]} 5...
Nf6 {[%clk 0:02:50.8]} 6. f3 {[%clk 0:02:57.3]} 6... a6 {[%clk 0:02:48.3]} 7.
Qd2 {[%clk 0:02:57.3]} 7... b5 {[%clk 0:02:46.6]} 8. cxb5 {[%clk 0:02:49.8]}
8... axb5 {[%clk 0:02:45.7]} 9. d5 {[%clk 0:02:49.5]} 9... b4 {[%clk 0:02:44]}
10. Nd1 {[%clk 0:02:49.4]} 10... cxd5 {[%clk 0:02:39]} 11. exd5 {[%clk
0:02:42.8]} 11... O-O {[%clk 0:02:36.9]} 12. Bc4 {[%clk 0:02:29.7]} 12... Bb7
{[%clk 0:02:02.4]} 13. Ne2 {[%clk 0:02:26.9]} 13... Qa5 {[%clk 0:02:00.5]} 14.
Nf4 {[%clk 0:02:05.1]} 14... Rc8 {[%clk 0:01:56]} 15. Bb3 {[%clk 0:02:04.9]}
15... Nbd7 {[%clk 0:01:39.2]} 16. O-O {[%clk 0:01:54.3]} 16... Nb6 {[%clk
0:01:25.7]} 17. Bxb6 {[%clk 0:01:52.3]} 17... Qxb6+ {[%clk 0:01:25.1]} 18. Kh1
{[%clk 0:01:49.8]} 18... Bh6 {[%clk 0:01:23.9]} 19. g3 {[%clk 0:01:47.5]} 19...
Nh5 {[%clk 0:01:20.4]} 20. Nf2 {[%clk 0:01:30.2]} 20... Nxf4 {[%clk 0:01:18.1]}
21. gxf4 {[%clk 0:01:30.8]} 21... Ra5 {[%clk 0:01:09.3]} 22. Rad1 {[%clk
0:01:29.8]} 22... Rcc5 {[%clk 0:01:05.1]} 23. Ne4 {[%clk 0:01:23.8]} 23... Rxd5
{[%clk 0:01:04.4]} 24. Bxd5 {[%clk 0:01:22.5]} 24... Rxd5 {[%clk 0:00:58.2]} 25.
Qf2 {[%clk 0:01:11.5]} 25... Qxf2 {[%clk 0:00:45.2]} 26. Nxf2 {[%clk 0:01:12.4]}
26... Ra5 {[%clk 0:00:37.3]} 27. Rfe1 {[%clk 0:01:05.4]} 27... Bxf3+ {[%clk
0:00:35.6]} 28. Kg1 {[%clk 0:01:03]} 28... Bxd1 {[%clk 0:00:36]} 29. Nxd1 {[%clk
0:01:03.2]} 29... Rxa2 {[%clk 0:00:29.8]} 30. Rxe7 {[%clk 0:01:02.5]} 30... Ra1
{[%clk 0:00:29]} 31. Re1 {[%clk 0:01:02.4]} 31... Bxf4 {[%clk 0:00:27.8]} 32.
Kg2 {[%clk 0:01:02]} 32... Be5 {[%clk 0:00:27]} 33. h3 {[%clk 0:01:00.5]} 33...
Kg7 {[%clk 0:00:25]} 34. Kf3 {[%clk 0:01:00.9]} 34... Bxb2 {[%clk 0:00:23.9]}
35. Re2 {[%clk 0:00:59]} 35... Bf6 {[%clk 0:00:18.5]} 36. Nf2 {[%clk 0:00:53]}
36... b3 {[%clk 0:00:18.1]} 37. Nd3 {[%clk 0:00:37.3]} 37... Rd1 {[%clk
0:00:15.3]} 38. Nb2 {[%clk 0:00:34.6]} 38... Rb1 {[%clk 0:00:14.7]} 39. Nc4
{[%clk 0:00:33.5]} 39... d5 {[%clk 0:00:13.7]} 40. Nd6 {[%clk 0:00:33.2]} 40...
b2 {[%clk 0:00:12.2]} 41. Ne8+ {[%clk 0:00:33.8]} 41... Kf8 {[%clk 0:00:12.2]}
42. Nxf6 {[%clk 0:00:34.7]} 42... Rf1+ {[%clk 0:00:11.4]} 43. Kg4 {[%clk
0:00:33.7]} 43... b1=Q {[%clk 0:00:11.5]} 44. Re8+ {[%clk 0:00:18.8]} 44... Kg7
{[%clk 0:00:11.3]} 45. Kg5 {[%clk 0:00:13.7]} 45... Qf5+ {[%clk 0:00:10]} 46.
Kh4 {[%clk 0:00:14.3]} 46... Qxf6+ {[%clk 0:00:10.3]} 47. Kg3 {[%clk 0:00:14.4]}
47... Qf4+ {[%clk 0:00:10]} 48. Kg2 {[%clk 0:00:14.5]} 48... Qf2# {[%clk
0:00:09.8]} 0-1

[Event "Early-Titled-Tuesday-Blitz-January-23-2024"]
[Site "Chess.com"]
[Date "2024.01.23"]
[Round "5"]
[White "ClaudiaSof"]
[Black "dianamirza"]
[Result "1-0"]
[WhiteElo "2262"]
[BlackElo "1985"]
[TimeControl "180+1"]
[EndTime "8:55:37 PST"]
[Termination "ClaudiaSof won by resignation"]

1. d4 {[%clk 0:02:59.4]} 1... Nf6 {[%clk 0:02:40.3]} 2. Bf4 {[%clk 0:02:58.3]}
2... d6 {[%clk 0:02:38.1]} 3. Nc3 {[%clk 0:02:56.1]} 3... g6 {[%clk 0:02:35.2]}
4. e4 {[%clk 0:02:55.9]} 4... Bg7 {[%clk 0:02:35.5]} 5. Nf3 {[%clk 0:02:55.5]}
5... O-O {[%clk 0:02:36]} 6. Be2 {[%clk 0:02:55]} 6... c5 {[%clk 0:02:34.9]} 7.
d5 {[%clk 0:02:51.2]} 7... Nh5 {[%clk 0:02:33.5]} 8. Be3 {[%clk 0:02:48.8]} 8...
a6 {[%clk 0:02:25.1]} 9. a4 {[%clk 0:02:47.1]} 9... Bd7 {[%clk 0:02:19.1]} 10.
O-O {[%clk 0:02:44.6]} 10... Be8 {[%clk 0:02:16.2]} 11. Nd2 {[%clk 0:02:42.1]}
11... Nf6 {[%clk 0:02:15.8]} 12. Nc4 {[%clk 0:02:38.8]} 12... Nbd7 {[%clk
0:02:11]} 13. a5 {[%clk 0:02:13.9]} 13... Qc7 {[%clk 0:02:03.6]} 14. Qd2 {[%clk
0:01:53.4]} 14... Ne5 {[%clk 0:01:58.8]} 15. Nxe5 {[%clk 0:01:52.2]} 15... dxe5
{[%clk 0:01:59.7]} 16. Bh6 {[%clk 0:01:51.6]} 16... Nd7 {[%clk 0:01:49.8]} 17.
Bxg7 {[%clk 0:01:50.5]} 17... Kxg7 {[%clk 0:01:50.7]} 18. Rfd1 {[%clk
0:01:41.1]} 18... b5 {[%clk 0:01:35.2]} 19. axb6 {[%clk 0:01:39.2]} 19... Nxb6
{[%clk 0:01:34.6]} 20. d6 {[%clk 0:01:25.3]} 20... exd6 {[%clk 0:01:33.1]} 21.
Qxd6 {[%clk 0:01:24.9]} 21... Qxd6 {[%clk 0:01:26.8]} 22. Rxd6 {[%clk
0:01:24.2]} 22... Nd7 {[%clk 0:00:52.4]} 23. Rdxa6 {[%clk 0:01:22.3]} 23... Rxa6
{[%clk 0:00:52.6]} 24. Rxa6 {[%clk 0:01:20]} 24... f5 {[%clk 0:00:53]} 25. f3
{[%clk 0:01:13.8]} 25... Bf7 {[%clk 0:00:42.7]} 26. Ra7 {[%clk 0:01:10.1]} 26...
Nb6 {[%clk 0:00:40.5]} 27. b3 {[%clk 0:01:05]} 27... Kh6 {[%clk 0:00:33.9]} 28.
Rb7 {[%clk 0:01:03.4]} 28... Nc8 {[%clk 0:00:29.8]} 29. Nd5 {[%clk 0:01:00.5]}
29... Nd6 {[%clk 0:00:26.4]} 30. Rd7 {[%clk 0:00:59]} 30... Nc8 {[%clk
0:00:15.2]} 31. Bc4 {[%clk 0:00:56.4]} 31... fxe4 {[%clk 0:00:15]} 32. fxe4
{[%clk 0:00:56]} 32... Be6 {[%clk 0:00:15.4]} 33. Rc7 {[%clk 0:00:53.8]} 33...
Kg5 {[%clk 0:00:11]} 34. h3 {[%clk 0:00:51.1]} 34... h5 {[%clk 0:00:10]} 35. Rc6
{[%clk 0:00:45.6]} 35... Bxd5 {[%clk 0:00:09.5]} 36. Bxd5 {[%clk 0:00:40.3]}
36... Ne7 {[%clk 0:00:09.8]} 37. Re6 {[%clk 0:00:38.3]} 37... Nxd5 {[%clk
0:00:09.8]} 38. exd5 {[%clk 0:00:38]} 38... Kf5 {[%clk 0:00:09.3]} 39. Rc6
{[%clk 0:00:38]} 39... e4 {[%clk 0:00:07.8]} 40. Rxc5 {[%clk 0:00:33.9]} 40...
Kf4 {[%clk 0:00:08.2]} 41. Rc3 {[%clk 0:00:31.3]} 41... e3 {[%clk 0:00:07.9]}
42. Kf1 {[%clk 0:00:29.3]} 42... Rd8 {[%clk 0:00:06.1]} 43. Ke2 {[%clk
0:00:27.6]} 43... Rxd5 {[%clk 0:00:05.2]} 44. Rxe3 {[%clk 0:00:27.3]} 44... Rc5
{[%clk 0:00:05.3]} 45. c4 {[%clk 0:00:25.4]} 45... g5 {[%clk 0:00:05.4]} 46.
Rf3+ {[%clk 0:00:24]} 46... Ke4 {[%clk 0:00:05.4]} 47. Rd3 {[%clk 0:00:21.8]}
47... g4 {[%clk 0:00:05.1]} 48. hxg4 {[%clk 0:00:21.1]} 48... hxg4 {[%clk
0:00:06]} 49. Rd5 {[%clk 0:00:20.5]} 49... Rxd5 {[%clk 0:00:04.5]} 50. cxd5
{[%clk 0:00:20.2]} 50... Kxd5 {[%clk 0:00:05.4]} 51. Ke3 {[%clk 0:00:20.2]}
51... Kc5 {[%clk 0:00:06.3]} 52. Kf4 {[%clk 0:00:20.4]} 52... Kb4 {[%clk
0:00:07.2]} 53. Kxg4 {[%clk 0:00:20.7]} 53... Kxb3 {[%clk 0:00:08.1]} 54. Kf5
{[%clk 0:00:20.9]} 1-0